Cogmind - Beta 13 @@@ ROGUE MODE // 2024.04.17 @ 21:14:46 Player: graour Result: Destroyed by Y-54 Guardian with Flak Gun Performance ------------- Evolutions (3) 1500 Regions Visited (5) 1000 Robots Destroyed (74) 370 Value Destroyed (1990) 1990 Prototype IDs (3) 60 Alien Tech Used (0) 0 Bonus (0) 0 TOTAL SCORE: 4920 Bonus ------- None Cogmind --------- Core Integrity 0/700 Matter 270/300 Energy 96/100 System Corruption 9% Temperature Cool (18) Movement Rolling (140) Ox4 Location -7/Factory Parts ------- > --- POWER (1) -------- (None) > --- PROPULSION (4) --- Wheel Wheel > --- UTILITY (6) ------ Huge Storage Unit Experimental Sensor Array Improved Signal Interpreter > --- WEAPON (2) ------- (None) > --- INVENTORY (25) --- Nuclear Core Light Treads Medium Matter Pod (100) Sensor Array Improved Sensor Array Improved Signal Interpreter Improved Light Armor Plating Improved Medium Armor Plating Hacking Suite Hacking Suite System Shield System Restoration Module Light Cannon Advanced Assault Cannon Hammer Peak State ------------ > --- POWER ------------ Light Nuclear Core > --- PROPULSION ------- Armored Wheel Armored Wheel Armored Wheel Armored Wheel > --- UTILITY ---------- Improved Cooling System Huge Storage Unit Experimental Sensor Array Improved Signal Interpreter Improved Light Armor Plating Hacking Suite > --- WEAPON ----------- Heavy EM Shotgun Heavy EM Shotgun > --- INVENTORY -------- Nuclear Core Light Treads Wheel Wheel Wheel Compact Wheel Medium Matter Pod Sensor Array Improved Sensor Array Improved Signal Interpreter Improved Light Armor Plating Improved Medium Armor Plating Hacking Suite Hacking Suite System Shield System Restoration Module Gauss Rifle Light Cannon Advanced Assault Cannon Rocket Launcher Hammer [Rating: 46] Favorites ----------- Power Ion Engine Engine Ion Engine Power Core Light Nuclear Core Propulsion Armored Wheel Treads Light Treads Wheel Armored Wheel Utility Huge Storage Unit Device Hardlight Generator Storage Huge Storage Unit Processor Improved Signal Interpreter Hackware Hacking Suite Protection Hardened Medium Armor Plating Weapon Light Assault Rifle Energy Gun Small Laser Energy Cannon Advanced Beam Cannon Ballistic Gun Light Assault Rifle Ballistic Cannon Light Cannon Launcher Grenade Launcher Special Weapon Mining Laser Impact Weapon Hammer Slashing Weapon Mining Claw Build | -11 -10 -10 -9 -8 -7 ------- Run | Yrd Mat Min Mat Mat Fac Slots Evolved 6 | . . . 2 2 2 Power . | . . . . . . Propulsion 2 | . . . . 2 . Utility 4 | . . . 2 . 2 Weapon . | . . . . . . Parts Attached 106 | 6 17 8 28 14 33 Power 12 | 1 2 1 4 1 3 Engine 9 | 1 2 1 4 . 1 Core 3 | . . . . 1 2 Reactor . | . . . . . . Propulsion 26 | 2 2 3 6 7 6 Treads 7 | . . . 4 3 . Leg . | . . . . . . Wheel 19 | 2 2 3 2 4 6 Hover . | . . . . . . Flight . | . . . . . . Utility 27 | 1 5 . 9 4 8 Device 8 | . . . 4 2 2 Storage 4 | 1 2 . 1 . . Processor 3 | . 1 . . . 2 Hackware 1 | . . . 1 . . Protection 11 | . 2 . 3 2 4 Artifact . | . . . . . . Weapon 41 | 2 8 4 9 2 16 Energy Gun 10 | 1 1 . 2 1 5 Energy Cannon 1 | . . . 1 . . Ballistic Gun 11 | 1 5 2 2 . 1 Ballistic Cannon 7 | . . . 1 1 5 Launcher 5 | . 1 1 2 . 1 Special Weapon 1 | . 1 . . . . Impact Weapon 4 | . . . . . 4 Slashing Weapon 2 | . . 1 1 . . Piercing Weapon . | . . . . . . Special Melee Weapon . | . . . . . . Unidentified Prototypes 3 | . . . 2 . 1 Corrupted Parts 1 | . . . . . 1 System Corruption 1 | . . . . . 1 Parts Lost 40 | . 3 2 17 2 16 Power 6 | . . 1 3 . 2 Propulsion 13 | . 1 1 5 . 6 Utility 9 | . 1 . 3 2 3 Weapon 12 | . 1 . 6 . 5 Highest Loss Streak 8 | . 1 2 8 2 8 To Critical Strikes . | . . . . . . Average Slot Usage (%) 96 | . 97 100 94 96 96 Engine 7 | . 14 14 9 . 1 Core 2 | . . . . 8 5 Treads 6 | . . . 12 21 . Wheel 21 | . 26 28 9 14 28 Device 6 | . . . 15 8 5 Storage 10 | . 14 14 11 9 7 Processor 6 | . . 14 2 . 13 Hackware 5 | . . . 10 9 6 Protection 7 | . 12 . 3 7 8 Energy Gun 6 | . 12 . 6 8 4 Ballistic Gun 8 | . 12 23 8 . . Ballistic Cannon 3 | . . . 3 9 6 Naked Turns . | . . . . . . Heaviest Build 111 | 13 92 89 91 104 111 Greatest Support 80 | 32 32 26 40 80 52 Greatest Overweight (x) 8 | 1 5 4 5 8 8 Average Overweight (x) 2 | . 2 3 3 1 2 Largest Inventory Capacity 25 | 8 25 25 25 25 25 Average Capacity 24 | 6 23 25 25 25 25 Most Carried 25 | 4 19 23 22 25 25 Average Carried 18 | 2 12 21 15 20 23 Final Capacity 25 | 8 25 25 25 25 25 Final Carried 25 | 4 19 22 15 25 15 Class Distribution -------------------- 80% | Mutant 19% | Scavenger-Mutant Dominant Class ---------------- Mutant | -10/Materials Mutant | -10/Mines Mutant | -9/Materials Scavenger-Mutant | -8/Materials Mutant | -7/Factory Resources | -11 -10 -10 -9 -8 -7 ----------- Run | Yrd Mat Min Mat Mat Fac Matter Collected 1997 | 205 414 161 383 267 567 Remotely . | . . . . . . Salvage Created 2493 | . 431 90 362 638 972 Parts 144 | . 34 13 17 27 53 Haulers Intercepted 4 | . 1 . . 2 1 Recyclers Shooed 1 | . . . . . 1 Parts Field Recycled . | . . . . . . Retrieved Matter . | . . . . . . Parts Self-Destructed . | . . . . . . Prevented . | . . . . . . Kills | -11 -10 -10 -9 -8 -7 ------- Run | Yrd Mat Min Mat Mat Fac Combat Hostiles Destroyed 52 | . 12 8 9 8 15 Guns 32 | . 9 5 8 3 7 Cannons 13 | . . . 1 5 7 AOE 7 | . 3 3 . . 1 Classes Destroyed 14 | . 6 . 1 3 4 Worker 5 | . 1 . . 2 2 Builder 3 | . 2 . . . 1 Hauler 4 | . 1 . . 2 1 Recycler 4 | . . . . 1 3 Operator 2 | . . . . 1 1 Watcher 4 | . 2 . . 1 1 Swarmer 19 | . 6 8 1 . 4 Grunt 20 | . 6 . 4 5 5 Brawler 1 | . . . . . 1 Duelist 1 | . . . . 1 . Sentry 8 | . . . 4 2 2 Hunter 1 | . . . . . 1 Programmer 1 | . . . . . 1 Heavy 1 | . . . . . 1 Best Kill Streak 6 | . 4 3 4 4 6 Combat Bots Only 4 | . 3 3 4 3 4 Max Kills in Single Turn 3 | . 2 3 1 1 2 Gunslinging . | . . . . . . Exploded 3 | . 1 3 . . 1 Melee . | . . . . . . Uniques/NPCs Destroyed . | . . . . . . Combat | -11 -10 -10 -9 -8 -7 -------- Run | Yrd Mat Min Mat Mat Fac Hostile Shots Fired 512 | . 76 32 146 37 221 Missed 152 | . 22 8 40 10 72 Damage Taken 5389 | . 665 211 1378 421 2714 Core 1244 | . 165 40 312 23 704 Absorbed by Shields 212 | . . . . 80 132 Regen/Repaired (Parts) 309 | . . . 79 . 230 Core Remaining (%) 58 | 100 . 18 22 95 . Volleys Fired 246 | . 74 19 49 40 64 Largest 2 | . 2 2 2 2 2 Hottest 140 | . 140 50 90 80 130 Shots Fired 458 | . 139 38 88 80 113 Gun 336 | . 118 37 78 40 63 Cannon 97 | . . . 7 40 50 Launcher 7 | . 3 1 3 . . Special 18 | . 18 . . . . Kinetic 253 | . 48 37 71 40 57 Thermal 120 | . 88 . 14 . 18 Explosive 7 | . 3 1 3 . . Electromagnetic 78 | . . . . 40 38 Robot Hit Streak 12 | . 12 5 11 9 11 Robot Miss Streak 5 | . 5 4 3 2 5 Penetration Max 1 | . . . . . 1 Secondary Targets 8 | . 3 . 3 . 2 Max Gunslinging Chain 1 | . 1 . 1 . 1 Shots Hit Robots 292 | . 67 20 59 55 91 Core Hits 131 | . 25 11 22 22 51 Critical Kills 1 | . . . . . 1 Critical Parts Destroyed 1 | . . . . . 1 Critical Strikes 7 | . . . 2 2 3 Burn 2 | . . . 1 . 1 Destroy 1 | . . . 1 . . Blast 1 | . . . . 1 . Corrupt 1 | . . . . 1 . Smash 2 | . . . . . 2 Melee Attacks 31 | . . 5 . . 26 Impact 26 | . . . . . 26 Slashing 5 | . . 5 . . . Piercing . | . . . . . . Sneak Attacks 6 | . . 1 . . 5 Combat Hostiles . | . . . . . . Follow-up Attacks . | . . . . . . Damage Inflicted 5498 | . 951 323 675 1136 2413 Guns 2926 | . 697 141 504 463 1121 Cannons 1317 | . . . 74 497 746 Explosions 738 | . 182 136 92 126 202 Melee 354 | . . 46 . . 308 Ramming 91 | . . . 5 50 36 Kinetic 2280 | . 277 141 468 497 897 Thermal 1205 | . 492 . 110 81 522 Explosive 410 | . 182 136 92 . . Electromagnetic 1158 | . . . . 508 650 Impact 308 | . . . . . 308 Slashing 46 | . . 46 . . . Piercing . | . . . . . . Highest Corruption 9 | . 1 1 2 1 9 Average Corruption 1 | . 1 1 2 1 6 Corruption Purged . | . . . . . . Corruption Blocked 8 | . . . . . 8 Effects 29 | . 7 7 8 3 4 Message Errors 6 | . 2 2 2 . . Matter Fused 12 | . 3 2 5 . 2 Heat Flow Errors 1 | . . 1 . . . Energy Discharges 1 | . . 1 . . . Parts Rejected 1 | . . . . . 1 Data Loss (minor) 3 | . 1 . 1 . 1 Data Loss (major) 4 | . 1 1 . 2 . Alerts 1 | . . . . 1 . Overload Shots . | . . . . . . Overflow Damage 247 | . 16 . . 52 179 Projectiles 60 | . 16 . . 15 29 Explosions 100 | . . . . 37 63 Melee 87 | . . . . . 87 Knockbacks 19 | . . . 1 3 15 Impact 1 | . . . . . 1 Kinetic 16 | . . . 1 3 12 Secondary 2 | . . . . . 2 Self-Inflicted Damage 253 | . . 13 2 87 151 Shots 6 | . . 1 . 2 3 Rammed 6 | . . . 1 3 2 Targets Rammed 6 | . . . 1 3 2 Kicked . | . . . . . . Crushed . | . . . . . . Highest Temperature 385 | . 385 181 87 179 274 Average Temperature 85 | . 106 77 19 56 97 Received Heat Transfer 1524 | . 201 . 612 171 540 Effects 1 | . 1 . . . . Shutdowns 1 | . 1 . . . . Siege Activations . | . . . . . . Robots Corrupted . | . . . . . . Combat Hostiles . | . . . . . . Parts Fried 9 | . . . . . 9 Impact Corruptions 2 | . . . . . 2 Robots Melted . | . . . . . . Combat Hostiles . | . . . . . . Parts Melted 3 | . . . 1 . 2 Heat Transferred 2631 | . 1136 . 347 100 1048 Parts Sabotaged . | . . . . . . Parts Stolen . | . . . . . . Parts Stripped . | . . . . . . Power Chain Reactions 4 | . . . . 1 3 Alert | -11 -10 -10 -9 -8 -7 ------- Run | Yrd Mat Min Mat Mat Fac Peak Influence 354 | . 151 204 133 223 354 Initial 100 | . . 58 20 12 100 Average 106 | . 37 96 53 127 208 Maximum Alert Level 1 | . . 1 . 1 1 Low Security (%) 82 | 100 100 71 100 90 53 Level 1 17 | . . 28 . 9 46 Level 2 . | . . . . . . Level 3 . | . . . . . . Level 4 . | . . . . . . Level 5 . | . . . . . . High Security . | . . . . . . Max Security . | . . . . . . Squads Dispatched 11 | . 3 . 1 1 6 Investigation 3 | . 3 . . . . Extermination 1 | . . . . . 1 Reinforcement 5 | . . . 1 1 3 Assault . | . . . . . . Garrison 2 | . . . . . 2 Intercept . | . . . . . . Searches Triggered . | . . . . . . Construction Impeded 1 | . . . . . 1 Haulers Reinforced . | . . . . . . Active Scanning Responses . | . . . . . . Cargo Convoy Interrupts 1 | . . . . . 1 Stealth | -11 -10 -10 -9 -8 -7 --------- Run | Yrd Mat Min Mat Mat Fac Distress Signals 6 | . 1 . 2 1 2 Communications Jammed . | . . . . . . Distress Signals . | . . . . . . Times Spotted 103 | . 18 9 26 13 37 Peak Tracking Total 7 | . 3 3 7 3 6 Tactical Retreats 7 | . . 1 2 1 3 Traps | -11 -10 -10 -9 -8 -7 ------- Run | Yrd Mat Min Mat Mat Fac Traps Triggered 12 | . 6 . . 1 5 Indirectly . | . . . . . . Trap Hack Attempts . | . . . . . . Triggered . | . . . . . . Disarmed . | . . . . . . Reprogrammed . | . . . . . . Reused . | . . . . . . Traps Extracted . | . . . . . . Installed . | . . . . . . Triggered 1 | . . . . . 1 Most Traps Carried 1 | . . 1 1 1 . Objects Rigged 6 | . . . 2 4 . Machines | -11 -10 -10 -9 -8 -7 ---------- Run | Yrd Mat Min Mat Mat Fac Machines Disabled 7 | . . . . 4 3 Max in Single Turn 2 | . . . . 2 1 Garrison Access 1 | . . . . . 1 Machines Repaired . | . . . . . . Machines Dismantled . | . . . . . . Machines Sabotaged . | . . . . . . Overloaded Fab Kills . | . . . . . . Hacking | -11 -10 -10 -9 -8 -7 --------- Run | Yrd Mat Min Mat Mat Fac Machines Accessed 24 | . 8 . 5 3 8 Terminals 17 | . 7 . 3 3 4 Fabricators . | . . . . . . Repair Stations 2 | . . . 1 . 1 Recycling Units 3 | . 1 . 1 . 1 Scanalyzers 1 | . . . . . 1 Garrison Access 1 | . . . . . 1 Total Hacks 60 | . 17 . 15 9 19 Successful 30 | . 7 . 9 3 11 Failed 30 | . 10 . 6 6 8 Catastrophic 7 | . 1 . 1 1 4 Database Lockouts . | . . . . . . Manual 37 | . 13 . 10 9 5 Terminals 41 | . 16 . 11 9 5 Fabricators . | . . . . . . Repair Stations 6 | . . . 3 . 3 Recycling Units 3 | . 1 . 1 . 1 Scanalyzers 7 | . . . . . 7 Garrison Access 3 | . . . . . 3 Terminal Hacks 7 | . 4 . 2 1 . Robot Analysis 1 | . 1 . . . . Terminal Index 2 | . 1 . 1 . . Alert Level 1 | . . . 1 . . Unreport Threat 1 | . 1 . . . . Recall Reinforcements 1 | . . . . 1 . Zone Layout 1 | . 1 . . . . Fabricator Hacks . | . . . . . . Repair Station Hacks 4 | . . . 2 . 2 Scan Component 2 | . . . 1 . 1 Repair 2 | . . . 1 . 1 Recycling Unit Hacks 3 | . 1 . 1 . 1 Retrieve Components 3 | . 1 . 1 . 1 Scanalyzer 7 | . . . . . 7 Insert Component 3 | . . . . . 3 Analyze 4 | . . . . . 4 Garrison Access Hacks 1 | . . . . . 1 Seal Access 1 | . . . . . 1 Unauthorized Hacks 8 | . 2 . 4 2 . Terminals 8 | . 2 . 4 2 . Track 2 | . 1 . 1 . . Assimilate 1 | . 1 . . . . Detonate 3 | . . . 2 1 . Operators 2 | . . . 1 1 . Fabricators . | . . . . . . Repair Stations . | . . . . . . Recycling Units . | . . . . . . Scanalyzers . | . . . . . . Garrison Access . | . . . . . . Data Cores Recovered . | . . . . . . Used . | . . . . . . Hacking Detections 17 | . 6 . 4 1 6 Full Trace Events . | . . . . . . Feedback Events . | . . . . . . Feedback Blocked . | . . . . . . Robot Schematics Acquired . | . . . . . . Robots Built . | . . . . . . Authchips . | . . . . . . Time . | . . . . . . Total Robot Build Rating . | . . . . . . Part Schematics Acquired 3 | . . . . . 3 Parts Built . | . . . . . . Authchips . | . . . . . . Time . | . . . . . . Total Part Build Rating . | . . . . . . Parts Repaired 2 | . . . 1 . 1 Time 45 | . . . 26 . 19 Parts Recycled . | . . . . . . Recycled Matter . | . . . . . . Retrieved Matter . | . . . . . . Retrieved Components 11 | . 6 . 3 . 2 Parts Scanalyzed 3 | . . . . . 3 Part Schematics Acquired 3 | . . . . . 3 Parts Damaged 1 | . . . . . 1 Bothacking | -11 -10 -10 -9 -8 -7 ------------ Run | Yrd Mat Min Mat Mat Fac Used RIF Installer . | . . . . . . Robots Hacked . | . . . . . . Non-combat . | . . . . . . Combat . | . . . . . . Robot Hacks Applied . | . . . . . . Relay Couplers Released . | . . . . . . Fabnet Peak Effective % . | . . . . . . Robots Rewired . | . . . . . . Allies Hacked . | . . . . . . Hacks Repelled . | . . . . . . Allies | -11 -10 -10 -9 -8 -7 -------- Run | Yrd Mat Min Mat Mat Fac Total Allies 1 | . 1 . . . . Largest Group 1 | . 1 . . . . Highest-Rated Group 10 | . 10 . . . . Highest-Rated Ally 10 | . 10 . . . . Total Orders . | . . . . . . Ally Attacks . | . . . . . . Total Damage . | . . . . . . Kills . | . . . . . . Allies Corrupted . | . . . . . . Allies Melted . | . . . . . . Intel | -11 -10 -10 -9 -8 -7 ------- Run | Yrd Mat Min Mat Mat Fac Robot Analysis Total 1 | . 1 . . . . Derelict Logs Recovered 2 | . . 2 . . . Drone Launches . | . . . . . . Drone Recoveries . | . . . . . . Exploration | -11 -10 -10 -9 -8 -7 ------------- Run | Yrd Mat Min Mat Mat Fac Turns Passed 5185 | 50 1120 726 1193 760 1336 Spaces Moved 2571 | 41 564 434 459 308 765 Core 9 | 9 . . . . . Treads 293 | . . . 143 150 . Legs . | . . . . . . Wheels 2269 | 32 564 434 316 158 765 Hover . | . . . . . . Flight . | . . . . . . Fastest Speed 50 | 50 100 135 140 120 107 Average Speed 148 | 91 131 139 208 178 121 Slowest Speed 320 | 100 175 140 320 240 200 Overloaded Moves . | . . . . . . Propulsion Burnouts . | . . . . . . Robots Hopped . | . . . . . . Cave-ins Triggered . | . . . . . . Exploration Rate (%) 43 | 3 90 76 39 27 23 Regions Visited 5 Branch Regions 1 Pre-discovered Areas 1 | . . 1 . . . Known Exits Taken 2 | . 1 1 . . . Unknown Exits Taken 3 | 1 . . 1 1 . Scrap Searched 1 | . . 1 . . . Spaces Dug 15 | . 7 2 . . 6 Terrain Destroyed 104 | . 39 11 26 3 25 Melee 8 | . . 2 . . 6 Projectile 15 | . 12 . . . 3 AOE 81 | . 27 9 26 3 16 Terrain Rammed . | . . . . . . Walls Destroyed . | . . . . . . Machines Disabled . | . . . . . . Actions | -11 -10 -10 -9 -8 -7 --------- Run | Yrd Mat Min Mat Mat Fac Total 3400 | 50 768 511 620 434 1017 Wait 345 | . 98 43 70 42 92 Move 2566 | 40 563 433 458 307 765 Hop . | . . . . . . Pick Up 62 | 4 13 3 9 16 17 Fast Attach 28 | 6 2 . 4 9 7 Attach 38 | . 2 2 18 3 13 Detach 7 | . . . 3 4 . Swap 40 | . 13 6 6 2 13 Drop 29 | . 3 . 2 8 16 Fire 246 | . 74 19 49 40 64 Melee 31 | . . 5 . . 26 Ram 4 | . . . 1 1 2 Kick . | . . . . . . Crush 2 | . . . . 2 . Escape Stasis . | . . . . . . Rewire 2 | . . . . . 2 Trap . | . . . . . . Miscellaneous . | . . . . . . Route ------- -11/Scrapyard -10/Materials (discovered 4 exits: *Mat x2 / *Min x2) -10/Mines -9/Materials -8/Materials -7/Factory (discovered 1 exit: *Fac) History --------- Turn | Location | Event 19 | -11/Scrapyard | Discovered new exit (range 16) 51 | -11/Scrapyard | Entered Materials 95 | -10/Materials | Discovered new exit (range 16) 303 | -10/Materials | Build established: Mutant 345 | -10/Materials | Discovered new exit (range 16) 410 | -10/Materials | Core integrity fell below 50% 1103 | -10/Materials | Discovered new exit (range 11) 1137 | -10/Materials | Discovered new exit (range 12) 1152 | -10/Materials | Identified exit to Materials 1169 | -10/Materials | Identified exit to Mines 1171 | -10/Materials | Entered Mines 1187 | -10/Mines | Met a Derelict bent on vengeance 1431 | -10/Mines | Learned Materials garrison access intel 1446 | -10/Mines | Build established: Scavenger-Mutant 1495 | -10/Mines | Assembled infested the area 1505 | -10/Mines | Found a damaged Exp. Sensor Array with a note attached 1508 | -10/Mines | Found Prototype Device 1619 | -10/Mines | Found a hidden stash of uninstalled traps 1654 | -10/Mines | Discovered exit to Materials (range 9) 1674 | -10/Mines | Core integrity fell below 20% 1747 | -10/Mines | Build established: Mutant 1785 | -10/Mines | Learned location of Storage (-7) 1897 | -10/Mines | Entered Materials 1897 | -9/Materials | Evolved 2 slots: Utility x2 1926 | -9/Materials | Identified Exp. Sensor Array 2154 | -9/Materials | Repaired Lgt. Armor Plating 2270 | -9/Materials | Lost 8 parts (1p3n2u2w) 2430 | -9/Materials | Lost 3 parts (1p2w) 2481 | -9/Materials | Core integrity fell below 50% 2612 | -9/Materials | Lost 3 parts (1p1n1w) 3068 | -9/Materials | Discovered new exit (range 8) 3090 | -9/Materials | Entered another Materials area 3090 | -8/Materials | Evolved 2 slots: Propulsion x2 3091 | -8/Materials | Loaded intel: 1 garrison access location 3263 | -8/Materials | Build established: Scavenger-Mutant 3794 | -8/Materials | Discovered new exit (range 15) 3844 | -8/Materials | Build established: Mutant 3850 | -8/Materials | Entered Factory 3850 | -7/Factory | Evolved 2 slots: Utility x2 4251 | -7/Factory | Repaired Hrd. Medium Armor Plating 4386 | -7/Factory | Discovered new exit (range 5) 4390 | -7/Factory | Identified exit to Factory 4692 | -7/Factory | Cargo convoy interrupted 4928 | -7/Factory | Garrison activated, responded to threat 5051 | -7/Factory | Lost 4 parts (1n1u2w) 5088 | -7/Factory | Garrison activated, responded to threat 5135 | -7/Factory | Core integrity fell below 50% 5163 | -7/Factory | Lost 8 parts (1p4n1u2w) 5174 | -7/Factory | Core integrity fell below 20% 5186 | -7/Factory | Destroyed by Y-54 Guardian with Flak Gun Last Messages --------------- 05162_ U-05 Engineer lays Concrete. 05163_ M-28 Smith repairs G-47 Trooper. 05164_ Penetrated by Slug. 05168_ Slug penetrates K-01 Serf. 05168_ K-01 Serf destroyed. 05168_ Wheel destroyed. 05169_ System corrupted: Matter fused (-7). 05174_ Penetrated by Slug. 05176_ ALERT: Suspicious intruders detected, dispatching Specialist reinforcements to area. 05177_ Slug penetrates Wall. 05178_ Integrated Corrupted Wheel (+1). 05179_ K-01 Serf collects debris. 05179_ M-28 Smith repairs L-41 Fighter. 05180_ Penetrated by Slug. 05183_ K-01 Serf collects debris. 05183_ Penetrated by Slug. 05184_ Slammed into L-41 Fighter. 05186_ System corrupted: Component data lost. 05186_ Slammed into L-41 Fighter. Map ----- +----------------------------------------------------+ | ?????????????????????????????????????????????????? | | ?????????????????????????????????????????????????? | | ?????????????????????????????????????????????????? | | ?????????????????????????????????????????????????? | | ?????????????????????????????????????????????????? | | ?????????????????????????????????????????????????? | | ?????????????????????????????????????????????????? | | ?????????????????????????????????????????????????? | | ?????????????????????????????????????????????????? | | ?????????????????????????????????????????????????? | | ?????????????????????????????????????????????????? | | ?????????????????????????????????????????????????? | | ?????????????????????????????????????????????????? | | ?????????????????????????????????H???????????????? | | ?????????????????????????????????????????????????? | | ?????????????????????????????????????????????????? | | ?????????????????????????????????k???????????????? | | ???????????????????????###+###???????????????????? | | ???????????????????????# #???????????????????? | | ???????????????????????? ##??????????????????? | | ???????????????????????? ???????????????????? | | ???????????????????????? #???????????????????? | | ???????????????????????? #???????????????????? | | ???????????############## #????????????????????? | | ???????????# ! # lh#????????????????????? | | ???????????#![ #@ #????????????????????? | | ???????????#[[ " " " " + #????????????????????? | | ????????????? ? " " " " # #????????????????????? | | ??????????????? " " " " # #????????????????????? | | ??????????????? " " " " # #????????????????????? | | ????????????????? " " " #m + ???????????????? | | ????????????????? " " " # # """"" [???????????? | | ????????????????? " " " # k# ""T""??????????????? | | ??????????????????" " " # !%#? ???????????????? | | ??????????????????" "?" # g=#?? ???????????????? | | ?????????????????????? #u #??? "??????????????? | | ??????????????????????### #???? "??????????????? | | ????????????????????????# #????? ??????????????? | | ????????????????????????# Y ##?????#?????????????? | | ????????????????????????# # ???????????????????? | | ????????????????????????# H /????????????????????? | | ????????????????????????# % #??u?????????????????? | | ????????????????????????# #????????????????????? | | ????????????????????????#= #????????????????????? | | ????????????????????????# #????????????????????? | | ????????????????????????# ^^#????????????????????? | | ????????????????????????#! #????????????????????? | | ????????????????????????# #????????????????????? | | ????????????????????"???# #????????????????????? | | ???????????????????""???# #????????????????????? | +----------------------------------------------------+ Best States ------------- Heat Dissipation 61 Energy Generation 16 Energy Capacity 290 Matter Stores 300 Matter Capacity 300 Sight Range 20 Robot Scan Range 20 Terrain Scan Range 14 Terrain Scan Density 10 Armor Coverage 375 Evasion (%) 50 Recoil Reduction 4 Offensive Hacking 10 Item Schematics ----------------- Hacking Suite | -7/Factory | Scanalyzed Hvy. Assault Rifle | -7/Factory | Scanalyzed Lgt. Deuterium Engine | -7/Factory | Scanalyzed Robot Schematics ------------------ None Fabricated ------------ Nothing Alien Tech Used ----------------- None Achievements -------------- root@ Challenges ------------ None Game ------ Seed WarpCoreSlayer Manual? 0 Play Time 00:48:40 Cumulative 34.1 hours Start 2024.04.17 @ 20:23:00 End 2024.04.17 @ 21:14:46 Sessions 1 Manual Loads 0 Difficulty Rogue Special Mode None Game No. 56 Rogue 56 Adventurer 0 Explorer 0 Win Type - Total 0 Types 0/0/0/0/0/0/0/0/0 Lore% 35 Gallery% 40 Achievement% 27 Wizard Run 0 Options --------- Layout 1 ASCII 0 Keyboard 1 Movement Arrows Keybinds 0 Fullscreen 1 Font 24/Smallcaps Map View 50x35 Zoom Use 0% Tactical HUD 1 Map Filters NONE Filters NONE Steam 1 RUN: c0b2e371-92f9-48eb-8dda-1e9ff02aa6d6